[Event "Early-Titled-Tuesday-Blitz-September-05-2023"]
[Site "Chess.com"]
[Date "2023.09.05"]
[Round "10"]
[White "djano"]
[Black "Murad_Ibrahimli"]
[Result "0-1"]
[WhiteElo "2625"]
[BlackElo "2864"]
[TimeControl "180+1"]
[EndTime "9:51:43 PDT"]
[Termination "Murad_Ibrahimli won by checkmate"]

1. e4 {[%clk 0:03:00.9]} 1... e5 {[%clk 0:02:59.7]} 2. Nf3 {[%clk 0:02:59.2]}
2... Nc6 {[%clk 0:03:00.4]} 3. d4 {[%clk 0:02:57.1]} 3... exd4 {[%clk
0:03:00.4]} 4. Nxd4 {[%clk 0:02:58]} 4... Nf6 {[%clk 0:02:59.9]} 5. Nc3 {[%clk
0:02:57.7]} 5... Bb4 {[%clk 0:02:58.9]} 6. Nxc6 {[%clk 0:02:57.8]} 6... bxc6
{[%clk 0:02:59.8]} 7. Bd3 {[%clk 0:02:58.1]} 7... O-O {[%clk 0:02:59.5]} 8. O-O
{[%clk 0:02:57.6]} 8... d5 {[%clk 0:03:00.2]} 9. exd5 {[%clk 0:02:55.4]} 9...
cxd5 {[%clk 0:03:01.1]} 10. Qf3 {[%clk 0:02:55.6]} 10... h6 {[%clk 0:02:55.3]}
11. h3 {[%clk 0:02:53]} 11... c6 {[%clk 0:02:55]} 12. Na4 {[%clk 0:02:48.1]}
12... Re8 {[%clk 0:02:51.3]} 13. b3 {[%clk 0:02:45.6]} 13... Ne4 {[%clk
0:02:45.3]} 14. Be3 {[%clk 0:02:35.6]} 14... Nd2 {[%clk 0:02:36.4]} 15. Bxd2
{[%clk 0:02:31.6]} 15... Bxd2 {[%clk 0:02:37.3]} 16. Bf5 {[%clk 0:02:28.1]}
16... Ba6 {[%clk 0:02:33.7]} 17. Bd3 {[%clk 0:02:28.2]} 17... Bc8 {[%clk
0:02:32.8]} 18. Bf5 {[%clk 0:02:28]} 18... Qf6 {[%clk 0:02:29.8]} 19. Bxc8
{[%clk 0:02:25.4]} 19... Qxf3 {[%clk 0:02:29.5]} 20. gxf3 {[%clk 0:02:26.3]}
20... Raxc8 {[%clk 0:02:29.9]} 21. Rfd1 {[%clk 0:02:22]} 21... Bb4 {[%clk
0:02:14.5]} 22. c4 {[%clk 0:02:16.5]} 22... dxc4 {[%clk 0:02:12.6]} 23. bxc4
{[%clk 0:02:16.4]} 23... Re2 {[%clk 0:02:12.7]} 24. Rab1 {[%clk 0:02:10.6]}
24... a5 {[%clk 0:02:11.4]} 25. Rb2 {[%clk 0:02:06.6]} 25... Rce8 {[%clk
0:02:09.6]} 26. Kf1 {[%clk 0:02:04.9]} 26... Re1+ {[%clk 0:02:06]} 27. Rxe1
{[%clk 0:02:04.7]} 27... Rxe1+ {[%clk 0:02:06.9]} 28. Kg2 {[%clk 0:02:05.6]}
28... Rc1 {[%clk 0:02:07.4]} 29. Nb6 {[%clk 0:01:57.3]} 29... g5 {[%clk
0:01:59.8]} 30. Rb3 {[%clk 0:01:37.8]} 30... Rc2 {[%clk 0:01:54.8]} 31. a3
{[%clk 0:01:36.9]} 31... Bc5 {[%clk 0:01:54.6]} 32. Nd7 {[%clk 0:01:34.9]} 32...
Bxf2 {[%clk 0:01:54.2]} 33. Rb8+ {[%clk 0:01:32.1]} 33... Kg7 {[%clk 0:01:54]}
34. Rc8 {[%clk 0:01:31.1]} 34... Bd4+ {[%clk 0:01:52.1]} 35. Kg3 {[%clk
0:01:30.6]} 35... Rxc4 {[%clk 0:01:52.3]} 36. Kg4 {[%clk 0:01:29.7]} 36... Be5+
{[%clk 0:01:30.7]} 37. Kf5 {[%clk 0:01:29]} 37... Bd6 {[%clk 0:01:31.1]} 38. Ne5
{[%clk 0:01:25.3]} 38... Rf4# {[%clk 0:01:30.7]} 0-1

[Event "Early-Titled-Tuesday-Blitz-September-05-2023"]
[Site "Chess.com"]
[Date "2023.09.05"]
[Round "10"]
[White "Kapitan_Bayan"]
[Black "PawnEatingZombie"]
[Result "0-1"]
[WhiteElo "2188"]
[BlackElo "2066"]
[TimeControl "180+1"]
[EndTime "9:51:45 PDT"]
[Termination "PawnEatingZombie won by resignation"]

1. e4 {[%clk 0:03:00.9]} 1... Nf6 {[%clk 0:02:57.6]} 2. e5 {[%clk 0:03:00.6]}
2... Nd5 {[%clk 0:02:57.9]} 3. d4 {[%clk 0:03:01.2]} 3... d6 {[%clk 0:02:57.8]}
4. c4 {[%clk 0:03:01.7]} 4... Nb6 {[%clk 0:02:58.3]} 5. exd6 {[%clk 0:03:01.4]}
5... exd6 {[%clk 0:02:58.9]} 6. Nc3 {[%clk 0:02:58.4]} 6... Be7 {[%clk 0:02:59]}
7. Bd3 {[%clk 0:02:56.6]} 7... Bf6 {[%clk 0:02:57.3]} 8. Nge2 {[%clk 0:02:56.4]}
8... Nc6 {[%clk 0:02:40.3]} 9. Be3 {[%clk 0:02:55.1]} 9... O-O {[%clk
0:02:25.7]} 10. O-O {[%clk 0:02:49.7]} 10... Nb4 {[%clk 0:02:24.9]} 11. Ng3
{[%clk 0:02:38.8]} 11... Nxd3 {[%clk 0:02:20.9]} 12. Qxd3 {[%clk 0:02:39.7]}
12... d5 {[%clk 0:02:18.8]} 13. c5 {[%clk 0:02:38.9]} 13... Nc4 {[%clk
0:02:18.3]} 14. b3 {[%clk 0:02:33]} 14... Nxe3 {[%clk 0:02:16.3]} 15. fxe3
{[%clk 0:02:33.1]} 15... Re8 {[%clk 0:02:08.2]} 16. Nf5 {[%clk 0:02:26.2]} 16...
Bxf5 {[%clk 0:02:06.6]} 17. Rxf5 {[%clk 0:02:24.6]} 17... c6 {[%clk 0:02:04.2]}
18. Raf1 {[%clk 0:02:23.1]} 18... Re6 {[%clk 0:02:03]} 19. e4 {[%clk 0:02:11.8]}
19... dxe4 {[%clk 0:02:01.4]} 20. Nxe4 {[%clk 0:02:11.5]} 20... Qxd4+ {[%clk
0:02:00.8]} 21. Qxd4 {[%clk 0:02:06.9]} 21... Bxd4+ {[%clk 0:02:01.7]} 22. Kh1
{[%clk 0:01:59]} 22... Rxe4 {[%clk 0:01:57.9]} 23. Rxf7 {[%clk 0:01:58.6]} 23...
Bxc5 {[%clk 0:01:43.9]} 24. Rxb7 {[%clk 0:01:56.9]} 24... Rf8 {[%clk 0:01:37.3]}
25. Rd1 {[%clk 0:01:53.8]} 25... Rf7 {[%clk 0:01:24.8]} 26. Rb8+ {[%clk
0:01:49]} 26... Bf8 {[%clk 0:01:25.4]} 27. h3 {[%clk 0:01:45]} 27... g6 {[%clk
0:01:22.7]} 28. Rd6 {[%clk 0:01:39]} 28... c5 {[%clk 0:01:17.4]} 29. Rd5 {[%clk
0:01:31.5]} 29... Kg7 {[%clk 0:01:15.9]} 30. Kh2 {[%clk 0:01:30.3]} 30... Re2
{[%clk 0:01:14.6]} 31. Rc8 {[%clk 0:01:25.9]} 31... Rxa2 {[%clk 0:01:10.8]} 0-1

[Event "Early-Titled-Tuesday-Blitz-September-05-2023"]
[Site "Chess.com"]
[Date "2023.09.05"]
[Round "10"]
[White "expii"]
[Black "Fleetw00dMac"]
[Result "0-1"]
[WhiteElo "2267"]
[BlackElo "2463"]
[TimeControl "180+1"]
[EndTime "9:51:49 PDT"]
[Termination "Fleetw00dMac won by resignation"]

1. e4 {[%clk 0:03:00.9]} 1... e5 {[%clk 0:02:57.5]} 2. Nf3 {[%clk 0:02:56.6]}
2... Nc6 {[%clk 0:02:57]} 3. Bb5 {[%clk 0:02:45.5]} 3... a6 {[%clk 0:02:56.5]}
4. Ba4 {[%clk 0:02:44.1]} 4... Nf6 {[%clk 0:02:56.2]} 5. d4 {[%clk 0:02:44.7]}
5... exd4 {[%clk 0:02:51.7]} 6. O-O {[%clk 0:02:44.1]} 6... Be7 {[%clk
0:02:50.3]} 7. Re1 {[%clk 0:02:42.5]} 7... b5 {[%clk 0:02:49.2]} 8. Bb3 {[%clk
0:02:42.2]} 8... d6 {[%clk 0:02:48.9]} 9. Bd5 {[%clk 0:02:42.3]} 9... Nxd5
{[%clk 0:02:42.7]} 10. exd5 {[%clk 0:02:43.2]} 10... Ne5 {[%clk 0:02:41.4]} 11.
Nxd4 {[%clk 0:02:41.3]} 11... O-O {[%clk 0:02:41]} 12. a4 {[%clk 0:02:41.5]}
12... Bd7 {[%clk 0:02:33.9]} 13. axb5 {[%clk 0:02:40.9]} 13... axb5 {[%clk
0:02:32.3]} 14. Rxa8 {[%clk 0:02:40.8]} 14... Qxa8 {[%clk 0:02:32.1]} 15. Nc3
{[%clk 0:02:33.6]} 15... b4 {[%clk 0:02:30.8]} 16. Ne4 {[%clk 0:02:33.5]} 16...
f5 {[%clk 0:01:54.6]} 17. Ng3 {[%clk 0:02:23.5]} 17... f4 {[%clk 0:01:50.5]} 18.
Ne4 {[%clk 0:02:22.1]} 18... Qxd5 {[%clk 0:01:43.8]} 19. Nf5 {[%clk 0:02:17.5]}
19... Qf7 {[%clk 0:01:43.6]} 20. Nxe7+ {[%clk 0:02:16.4]} 20... Qxe7 {[%clk
0:01:43.3]} 21. f3 {[%clk 0:02:14.1]} 21... Qf7 {[%clk 0:01:38.4]} 22. Qd4
{[%clk 0:02:01.6]} 22... b3 {[%clk 0:01:33.6]} 23. c3 {[%clk 0:01:59.9]} 23...
Qc4 {[%clk 0:01:30.3]} 24. Bd2 {[%clk 0:01:49.7]} 24... Qxd4+ {[%clk 0:01:26.6]}
25. cxd4 {[%clk 0:01:50.6]} 25... Nc4 {[%clk 0:01:26.8]} 26. Bc3 {[%clk
0:01:49.9]} 26... Ra8 {[%clk 0:01:18.7]} 27. Nd2 {[%clk 0:01:44]} 27... Nxd2
{[%clk 0:01:15.2]} 28. Bxd2 {[%clk 0:01:44.9]} 28... Kf7 {[%clk 0:01:11.2]} 29.
h3 {[%clk 0:01:41.8]} 29... g5 {[%clk 0:01:10.2]} 30. Rc1 {[%clk 0:01:38.5]}
30... c6 {[%clk 0:01:09.1]} 31. Rc3 {[%clk 0:01:35.4]} 31... Ra1+ {[%clk
0:01:00.8]} 32. Kh2 {[%clk 0:01:35.1]} 32... Rd1 {[%clk 0:01:00.8]} 33. Rd3
{[%clk 0:01:32.4]} 33... Bf5 {[%clk 0:01:00.4]} 34. Rxb3 {[%clk 0:01:31.2]}
34... Rxd2 {[%clk 0:01:00.4]} 0-1

[Event "Early-Titled-Tuesday-Blitz-September-05-2023"]
[Site "Chess.com"]
[Date "2023.09.05"]
[Round "10"]
[White "Mariia89"]
[Black "Boorchess"]
[Result "0-1"]
[WhiteElo "1975"]
[BlackElo "2567"]
[TimeControl "180+1"]
[EndTime "9:51:50 PDT"]
[Termination "Boorchess won by resignation"]

1. d4 {[%clk 0:02:41.5]} 1... h5 {[%clk 0:02:59.2]} 2. Nf3 {[%clk 0:02:40.3]}
2... a5 {[%clk 0:02:58.3]} 3. c4 {[%clk 0:02:40.8]} 3... e6 {[%clk 0:02:58.2]}
4. Nc3 {[%clk 0:02:41.3]} 4... Bb4 {[%clk 0:02:56.3]} 5. e4 {[%clk 0:02:42.1]}
5... d6 {[%clk 0:02:55.6]} 6. Bg5 {[%clk 0:02:40.9]} 6... f6 {[%clk 0:02:53.8]}
7. Bd2 {[%clk 0:02:40.9]} 7... Ne7 {[%clk 0:02:48.6]} 8. Bd3 {[%clk 0:02:40.8]}
8... e5 {[%clk 0:02:46.9]} 9. a3 {[%clk 0:02:40.2]} 9... Bxc3 {[%clk 0:02:45.1]}
10. Bxc3 {[%clk 0:02:40.9]} 10... a4 {[%clk 0:02:44.1]} 11. h3 {[%clk
0:02:39.1]} 11... Bd7 {[%clk 0:02:39.8]} 12. Rc1 {[%clk 0:02:22.1]} 12... Nbc6
{[%clk 0:02:37.5]} 13. d5 {[%clk 0:02:20.9]} 13... Na5 {[%clk 0:02:35.7]} 14.
Rc2 {[%clk 0:02:12.9]} 14... Nb3 {[%clk 0:02:31.8]} 15. Re2 {[%clk 0:02:13.5]}
15... b6 {[%clk 0:02:30.3]} 16. Bc2 {[%clk 0:02:13.3]} 16... Nc5 {[%clk
0:02:30.1]} 17. Bb4 {[%clk 0:02:10.4]} 17... g5 {[%clk 0:02:29.3]} 18. Nd2
{[%clk 0:02:00.8]} 18... Ng6 {[%clk 0:02:26.5]} 19. g3 {[%clk 0:01:59]} 19... h4
{[%clk 0:02:25.5]} 20. Nb1 {[%clk 0:01:58.5]} 20... Qc8 {[%clk 0:02:21.5]} 21.
g4 {[%clk 0:01:48.6]} 21... Nf4 {[%clk 0:02:19.6]} 22. Rd2 {[%clk 0:01:49.1]}
22... Qa6 {[%clk 0:02:14.4]} 23. Bxc5 {[%clk 0:01:16.4]} 23... bxc5 {[%clk
0:02:12.5]} 24. Bd3 {[%clk 0:01:11.5]} 24... Ke7 {[%clk 0:02:05.6]} 25. Nc3
{[%clk 0:00:57.3]} 25... Rhb8 {[%clk 0:02:04]} 26. Bf1 {[%clk 0:00:56.8]} 26...
Rb3 {[%clk 0:02:00.6]} 27. Qc1 {[%clk 0:00:48]} 27... Qa5 {[%clk 0:01:52.9]} 28.
Ne2 {[%clk 0:00:42.2]} 28... Nd3+ {[%clk 0:01:50.9]} 0-1

[Event "Early-Titled-Tuesday-Blitz-September-05-2023"]
[Site "Chess.com"]
[Date "2023.09.05"]
[Round "10"]
[White "hurricane7791"]
[Black "WilsonPalencia21"]
[Result "1-0"]
[WhiteElo "2714"]
[BlackElo "2553"]
[TimeControl "180+1"]
[EndTime "9:51:59 PDT"]
[Termination "hurricane7791 won by resignation"]

1. d4 {[%clk 0:03:00.9]} 1... Nf6 {[%clk 0:02:59.5]} 2. c4 {[%clk 0:02:59.8]}
2... c5 {[%clk 0:02:59.5]} 3. d5 {[%clk 0:02:59.6]} 3... e6 {[%clk 0:02:59.5]}
4. Nc3 {[%clk 0:02:59.6]} 4... exd5 {[%clk 0:02:59.9]} 5. cxd5 {[%clk
0:03:00.5]} 5... d6 {[%clk 0:03:00.8]} 6. e4 {[%clk 0:03:00.6]} 6... g6 {[%clk
0:03:01.3]} 7. f4 {[%clk 0:03:01.1]} 7... Bg7 {[%clk 0:03:01.3]} 8. Bb5+ {[%clk
0:03:01.8]} 8... Nfd7 {[%clk 0:03:01.6]} 9. Bd3 {[%clk 0:03:01.7]} 9... a6
{[%clk 0:02:53.8]} 10. a4 {[%clk 0:02:59.3]} 10... Qh4+ {[%clk 0:02:50.6]} 11.
g3 {[%clk 0:02:59.2]} 11... Qe7 {[%clk 0:02:51.3]} 12. Nf3 {[%clk 0:02:59.7]}
12... O-O {[%clk 0:02:50.9]} 13. O-O {[%clk 0:03:00.3]} 13... Re8 {[%clk
0:02:46.8]} 14. Kg2 {[%clk 0:02:58.8]} 14... c4 {[%clk 0:02:38.1]} 15. Bxc4
{[%clk 0:02:55.2]} 15... Nc5 {[%clk 0:02:37.9]} 16. Re1 {[%clk 0:02:53.4]} 16...
Bg4 {[%clk 0:02:36.8]} 17. h3 {[%clk 0:02:53]} 17... Bxf3+ {[%clk 0:02:34.4]}
18. Qxf3 {[%clk 0:02:53.1]} 18... Nbd7 {[%clk 0:02:33.6]} 19. Bd2 {[%clk
0:02:46.4]} 19... Rac8 {[%clk 0:02:28.1]} 20. Rac1 {[%clk 0:02:36.6]} 20... Bxc3
{[%clk 0:02:22.6]} 21. Bxc3 {[%clk 0:02:32.7]} 21... Nxe4 {[%clk 0:02:22.1]} 22.
Bd3 {[%clk 0:02:33.2]} 22... f5 {[%clk 0:02:19.5]} 23. g4 {[%clk 0:02:29.1]}
23... Ndc5 {[%clk 0:02:10.8]} 24. Bc2 {[%clk 0:02:28.3]} 24... Qd7 {[%clk
0:01:59.7]} 25. Bd4 {[%clk 0:02:26.5]} 25... Nxa4 {[%clk 0:01:45.6]} 26. gxf5
{[%clk 0:02:24.2]} 26... gxf5 {[%clk 0:01:43.3]} 27. Kh2 {[%clk 0:02:17.1]}
27... Kf7 {[%clk 0:01:36.4]} 28. Qh5+ {[%clk 0:01:45.4]} 28... Kf8 {[%clk
0:01:36.5]} 29. Qh6+ {[%clk 0:01:40.3]} 29... Ke7 {[%clk 0:01:27.5]} 30. Qh4+
{[%clk 0:01:32.4]} 30... Kf8 {[%clk 0:01:25.6]} 31. Rg1 {[%clk 0:01:32.8]} 31...
Re7 {[%clk 0:00:58.5]} 32. Qh6+ {[%clk 0:01:28.1]} 32... Ke8 {[%clk 0:00:57.6]}
33. Rg8+ {[%clk 0:01:27.6]} 1-0

[Event "Early-Titled-Tuesday-Blitz-September-05-2023"]
[Site "Chess.com"]
[Date "2023.09.05"]
[Round "10"]
[White "KVAIDAN"]
[Black "MrBad74"]
[Result "1-0"]
[WhiteElo "2243"]
[BlackElo "2338"]
[TimeControl "180+1"]
[EndTime "9:52:00 PDT"]
[Termination "KVAIDAN won by resignation"]

1. f4 {[%clk 0:02:58.4]} 1... d5 {[%clk 0:02:58.9]} 2. Nf3 {[%clk 0:02:58.3]}
2... c6 {[%clk 0:02:58.2]} 3. e3 {[%clk 0:02:58.6]} 3... Bg4 {[%clk 0:02:55.9]}
4. h3 {[%clk 0:02:58.4]} 4... Bxf3 {[%clk 0:02:55.6]} 5. Qxf3 {[%clk 0:02:58.8]}
5... Nd7 {[%clk 0:02:56]} 6. b3 {[%clk 0:02:57.8]} 6... e5 {[%clk 0:02:55.7]} 7.
Bb2 {[%clk 0:02:58]} 7... Qc7 {[%clk 0:02:45]} 8. Nc3 {[%clk 0:02:57.6]} 8...
Ngf6 {[%clk 0:02:42.6]} 9. O-O-O {[%clk 0:02:56.8]} 9... O-O-O {[%clk
0:02:38.9]} 10. g4 {[%clk 0:02:54.7]} 10... Qa5 {[%clk 0:02:14.2]} 11. Kb1
{[%clk 0:02:54.3]} 11... Ba3 {[%clk 0:02:12.4]} 12. Ba1 {[%clk 0:02:53.6]} 12...
d4 {[%clk 0:01:50.7]} 13. Ne2 {[%clk 0:02:46.6]} 13... dxe3 {[%clk 0:01:39.4]}
14. g5 {[%clk 0:02:41.2]} 14... Nd5 {[%clk 0:01:22.5]} 15. dxe3 {[%clk
0:02:36.6]} 15... Rhe8 {[%clk 0:00:50.8]} 16. e4 {[%clk 0:02:29.5]} 16... Nxf4
{[%clk 0:00:44.6]} 17. Nxf4 {[%clk 0:02:29.6]} 17... exf4 {[%clk 0:00:44.4]} 18.
Qxf4 {[%clk 0:02:30]} 18... Ne5 {[%clk 0:00:23]} 19. Be2 {[%clk 0:02:26.4]}
19... Rxd1+ {[%clk 0:00:16.1]} 20. Rxd1 {[%clk 0:02:25.8]} 20... Qc7 {[%clk
0:00:16.7]} 21. h4 {[%clk 0:02:08.8]} 21... Bd6 {[%clk 0:00:16.5]} 22. h5 {[%clk
0:02:05.3]} 22... Kb8 {[%clk 0:00:15.7]} 23. h6 {[%clk 0:02:01.7]} 23... g6
{[%clk 0:00:14.5]} 24. Qf6 {[%clk 0:02:01.1]} 24... Rd8 {[%clk 0:00:12.7]} 25.
Bxe5 {[%clk 0:01:55]} 1-0

[Event "Early-Titled-Tuesday-Blitz-September-05-2023"]
[Site "Chess.com"]
[Date "2023.09.05"]
[Round "10"]
[White "Boxerandchessplayer"]
[Black "HouseOfDurin"]
[Result "1-0"]
[WhiteElo "2092"]
[BlackElo "2257"]
[TimeControl "180+1"]
[EndTime "9:52:04 PDT"]
[Termination "Boxerandchessplayer won by checkmate"]

1. e4 {[%clk 0:03:00.9]} 1... c5 {[%clk 0:02:57.7]} 2. Nf3 {[%clk 0:03:00.5]}
2... Nc6 {[%clk 0:02:57.6]} 3. d4 {[%clk 0:02:59.7]} 3... cxd4 {[%clk
0:02:58.5]} 4. Nxd4 {[%clk 0:03:00]} 4... g6 {[%clk 0:02:59.2]} 5. Nc3 {[%clk
0:03:00]} 5... Bg7 {[%clk 0:02:58.7]} 6. Be3 {[%clk 0:03:00.6]} 6... d6 {[%clk
0:02:58.4]} 7. Be2 {[%clk 0:03:00]} 7... Nf6 {[%clk 0:02:58.4]} 8. O-O {[%clk
0:02:58.1]} 8... O-O {[%clk 0:02:56.3]} 9. Kh1 {[%clk 0:02:56.6]} 9... h5 {[%clk
0:02:51]} 10. f3 {[%clk 0:02:56.1]} 10... a6 {[%clk 0:02:49.4]} 11. Qd2 {[%clk
0:02:55.2]} 11... Kh7 {[%clk 0:02:48.3]} 12. a4 {[%clk 0:02:48.7]} 12... Bd7
{[%clk 0:02:44.4]} 13. f4 {[%clk 0:02:45.7]} 13... Ng4 {[%clk 0:02:24.2]} 14.
Bxg4 {[%clk 0:02:36.4]} 14... Bxg4 {[%clk 0:02:25.1]} 15. h3 {[%clk 0:02:36.6]}
15... Bd7 {[%clk 0:02:22.2]} 16. f5 {[%clk 0:02:36.6]} 16... Ne5 {[%clk
0:02:19]} 17. Bf4 {[%clk 0:02:23.4]} 17... Nc4 {[%clk 0:02:08.7]} 18. Qf2 {[%clk
0:02:11.7]} 18... Nxb2 {[%clk 0:01:59.2]} 19. Rab1 {[%clk 0:02:05.8]} 19... Nxa4
{[%clk 0:01:50.2]} 20. Nxa4 {[%clk 0:02:02.3]} 20... Bxa4 {[%clk 0:01:51.1]} 21.
Rxb7 {[%clk 0:01:58.5]} 21... Rb8 {[%clk 0:01:50.9]} 22. Rfb1 {[%clk 0:01:49.7]}
22... Rxb7 {[%clk 0:01:41.7]} 23. Rxb7 {[%clk 0:01:50.6]} 23... Bd7 {[%clk
0:01:08]} 24. g4 {[%clk 0:01:41.2]} 24... hxg4 {[%clk 0:00:55.1]} 25. hxg4
{[%clk 0:01:40]} 25... Bc8 {[%clk 0:00:55.6]} 26. Qh4+ {[%clk 0:01:31.9]} 26...
Kg8 {[%clk 0:00:55.4]} 27. Rxe7 {[%clk 0:01:31.7]} 27... Bxd4 {[%clk 0:00:43.3]}
28. fxg6 {[%clk 0:01:28.3]} 28... Bg7 {[%clk 0:00:43]} 29. Qh7# {[%clk
0:01:27.8]} 1-0

[Event "Early-Titled-Tuesday-Blitz-September-05-2023"]
[Site "Chess.com"]
[Date "2023.09.05"]
[Round "10"]
[White "NovoselovRoman"]
[Black "andrzej"]
[Result "1-0"]
[WhiteElo "2580"]
[BlackElo "2408"]
[TimeControl "180+1"]
[EndTime "9:52:07 PDT"]
[Termination "NovoselovRoman won by checkmate"]

1. e4 {[%clk 0:03:00.9]} 1... e5 {[%clk 0:03:00]} 2. Nc3 {[%clk 0:03:00.2]} 2...
Nf6 {[%clk 0:03:00.1]} 3. Nf3 {[%clk 0:03:00.3]} 3... Bb4 {[%clk 0:02:59.1]} 4.
Bc4 {[%clk 0:03:00.2]} 4... Bxc3 {[%clk 0:02:55.2]} 5. dxc3 {[%clk 0:03:00.6]}
5... d6 {[%clk 0:02:55.6]} 6. h3 {[%clk 0:02:56.7]} 6... O-O {[%clk 0:02:53.8]}
7. Qe2 {[%clk 0:02:54.8]} 7... a5 {[%clk 0:02:53.4]} 8. Bg5 {[%clk 0:02:55]}
8... h6 {[%clk 0:02:50.2]} 9. Bh4 {[%clk 0:02:54.5]} 9... a4 {[%clk 0:02:48.8]}
10. a3 {[%clk 0:02:54.3]} 10... Be6 {[%clk 0:02:48.7]} 11. O-O-O {[%clk
0:02:52.6]} 11... Nbd7 {[%clk 0:02:36.1]} 12. g4 {[%clk 0:02:50.1]} 12... Qb8
{[%clk 0:02:22.2]} 13. g5 {[%clk 0:02:42.2]} 13... hxg5 {[%clk 0:02:19.1]} 14.
Nxg5 {[%clk 0:02:37.2]} 14... Bxc4 {[%clk 0:02:18.7]} 15. Qxc4 {[%clk
0:02:38.1]} 15... Nc5 {[%clk 0:02:11.9]} 16. Rhg1 {[%clk 0:02:32.8]} 16... b5
{[%clk 0:02:10.5]} 17. Qe2 {[%clk 0:02:31.6]} 17... Ne6 {[%clk 0:01:57.1]} 18.
Nxe6 {[%clk 0:02:20.5]} 18... fxe6 {[%clk 0:01:57.1]} 19. Rg6 {[%clk 0:02:18.5]}
19... Ne8 {[%clk 0:00:59.2]} 20. Rdg1 {[%clk 0:02:15]} 20... Rf7 {[%clk
0:00:54.4]} 21. Qh5 {[%clk 0:02:05.2]} 21... Rf4 {[%clk 0:00:24.8]} 22. Rh6
{[%clk 0:01:50.1]} 22... Qb6 {[%clk 0:00:03.6]} 23. Rh8# {[%clk 0:01:48.5]} 1-0

[Event "Early-Titled-Tuesday-Blitz-September-05-2023"]
[Site "Chess.com"]
[Date "2023.09.05"]
[Round "10"]
[White "Jahonas"]
[Black "DarZay"]
[Result "0-1"]
[WhiteElo "2377"]
[BlackElo "2274"]
[TimeControl "180+1"]
[EndTime "9:52:07 PDT"]
[Termination "DarZay won by resignation"]

1. e4 {[%clk 0:03:00.9]} 1... c5 {[%clk 0:02:57]} 2. b3 {[%clk 0:03:00.4]} 2...
Nc6 {[%clk 0:02:57]} 3. Bb2 {[%clk 0:03:00.1]} 3... d5 {[%clk 0:02:52.9]} 4.
exd5 {[%clk 0:02:59.4]} 4... Qxd5 {[%clk 0:02:51.6]} 5. Nf3 {[%clk 0:02:59]}
5... Nf6 {[%clk 0:02:51.1]} 6. Nc3 {[%clk 0:02:58.4]} 6... Qd8 {[%clk
0:02:50.7]} 7. Bb5 {[%clk 0:02:58.1]} 7... Bd7 {[%clk 0:02:50.2]} 8. O-O {[%clk
0:02:57.7]} 8... e6 {[%clk 0:02:50.7]} 9. d4 {[%clk 0:02:50.3]} 9... cxd4 {[%clk
0:02:45.6]} 10. Nxd4 {[%clk 0:02:49.7]} 10... Be7 {[%clk 0:02:39.6]} 11. Nxc6
{[%clk 0:02:49]} 11... bxc6 {[%clk 0:02:39.2]} 12. Bc4 {[%clk 0:02:44.4]} 12...
Nd5 {[%clk 0:02:38.7]} 13. Ne4 {[%clk 0:02:38.6]} 13... O-O {[%clk 0:02:33.4]}
14. Qf3 {[%clk 0:02:28.6]} 14... f5 {[%clk 0:02:32]} 15. Ng3 {[%clk 0:02:18.1]}
15... Bf6 {[%clk 0:02:26.7]} 16. Bxf6 {[%clk 0:02:14.7]} 16... Qxf6 {[%clk
0:02:26.3]} 17. Bxd5 {[%clk 0:02:10.8]} 17... exd5 {[%clk 0:02:25.7]} 18. Rad1
{[%clk 0:02:08]} 18... Qg6 {[%clk 0:02:15.4]} 19. h3 {[%clk 0:02:00]} 19... f4
{[%clk 0:02:12.4]} 20. Ne2 {[%clk 0:01:57.5]} 20... Qxc2 {[%clk 0:02:12.3]} 21.
Nc3 {[%clk 0:01:46.8]} 21... Kh8 {[%clk 0:02:06.6]} 22. Rfe1 {[%clk 0:01:41]}
22... Rae8 {[%clk 0:01:56.3]} 23. Rc1 {[%clk 0:01:22.7]} 23... Qf5 {[%clk
0:01:53.9]} 24. Na4 {[%clk 0:01:20.2]} 24... Rxe1+ {[%clk 0:01:37.1]} 25. Rxe1
{[%clk 0:01:19.4]} 25... d4 {[%clk 0:01:36.4]} 26. Qe4 {[%clk 0:01:10.4]} 26...
d3 {[%clk 0:01:36.4]} 27. Qxf5 {[%clk 0:01:06.7]} 27... Bxf5 {[%clk 0:01:23.5]}
28. f3 {[%clk 0:00:56.7]} 28... d2 {[%clk 0:01:21]} 29. Rd1 {[%clk 0:00:56.2]}
29... Rd8 {[%clk 0:01:20.7]} 0-1

[Event "Early-Titled-Tuesday-Blitz-September-05-2023"]
[Site "Chess.com"]
[Date "2023.09.05"]
[Round "10"]
[White "vugarrasulov"]
[Black "shimastream"]
[Result "1-0"]
[WhiteElo "2962"]
[BlackElo "2970"]
[TimeControl "180+1"]
[EndTime "9:52:20 PDT"]
[Termination "vugarrasulov won on time"]

1. d4 {[%clk 0:03:00.9]} 1... Nf6 {[%clk 0:02:58.3]} 2. c4 {[%clk 0:03:01.4]}
2... e6 {[%clk 0:02:57.9]} 3. Nc3 {[%clk 0:03:01.5]} 3... d5 {[%clk 0:02:58]} 4.
cxd5 {[%clk 0:03:00.3]} 4... exd5 {[%clk 0:02:56.6]} 5. Bg5 {[%clk 0:03:00.2]}
5... c6 {[%clk 0:02:56.8]} 6. Qc2 {[%clk 0:02:57.8]} 6... Be7 {[%clk 0:02:53.3]}
7. e3 {[%clk 0:02:58]} 7... Bg4 {[%clk 0:02:52.2]} 8. Bd3 {[%clk 0:02:56]} 8...
Nbd7 {[%clk 0:02:49.6]} 9. Nge2 {[%clk 0:02:55.3]} 9... Bxe2 {[%clk 0:02:35.8]}
10. Bxe2 {[%clk 0:02:50.3]} 10... O-O {[%clk 0:02:35.9]} 11. Bd3 {[%clk
0:02:47.6]} 11... h6 {[%clk 0:02:32]} 12. Bf4 {[%clk 0:02:42.6]} 12... Re8
{[%clk 0:02:24.7]} 13. h3 {[%clk 0:02:40.9]} 13... Nf8 {[%clk 0:02:22.1]} 14.
O-O-O {[%clk 0:02:39.4]} 14... Ne6 {[%clk 0:02:21.1]} 15. Be5 {[%clk 0:02:27.9]}
15... b5 {[%clk 0:02:18.5]} 16. f4 {[%clk 0:02:23.5]} 16... b4 {[%clk
0:02:10.2]} 17. Na4 {[%clk 0:02:19.5]} 17... Qa5 {[%clk 0:02:07.5]} 18. Kb1
{[%clk 0:02:17.1]} 18... Rac8 {[%clk 0:02:07.1]} 19. Bf5 {[%clk 0:02:07.7]}
19... Nd7 {[%clk 0:01:43.2]} 20. Rc1 {[%clk 0:02:00.2]} 20... Nb6 {[%clk
0:01:20.8]} 21. Bxe6 {[%clk 0:01:51.3]} 21... fxe6 {[%clk 0:01:21]} 22. Qg6
{[%clk 0:01:48.2]} 22... Bf8 {[%clk 0:01:21]} 23. Nc5 {[%clk 0:01:47.3]} 23...
Nc4 {[%clk 0:00:55.8]} 24. Nd7 {[%clk 0:01:41.6]} 1-0